bitfinex-derivatives/quotes_BTCF0:USTF0_20210708
["timestamp","ask_amount","ask_price","bid_price","bid_amount"]
[1625705359863,5.42354626,33277.0,33276.0,0.08437357]
[1625705360012,6.42354626,33277.0,33276.0,0.08437357]
[1625705360161,6.42354626,33277.0,33276.0,0.08902275]
[1625705360311,8.01228134,33277.0,33276.0,0.00464918]
[1625705360762,7.01228134,33277.0,33276.0,0.00464918]
[1625705360913,8.01228134,33277.0,33276.0,0.00464918]
[1625705361814,5.42354626,33277.0,33276.0,0.00464918]
[1625705363991,5.42354626,33277.0,33275.0,0.00464066]
[1625705364140,5.42354626,33277.0,33276.0,0.0046407]
[1625705364293,1.00751632,33277.0,33276.0,0.0046407]
[1625705364440,5.41701572,33277.0,33275.0,0.00464074]
[1625705364665,4.40948383,33276.0,33275.0,0.00464074]
[1625705365265,4.40948383,33276.0,33275.0,0.00564074]
[1625705366016,5.40948383,33276.0,33275.0,0.00564074]
[1625705366844,5.9385573,33276.0,33275.0,0.00564074]
[1625705367145,4.9385573,33276.0,33275.0,0.00564074]
[1625705367820,3.52757185,33276.0,33275.0,0.09026371]
[1625705368949,4.93784316,33276.0,33275.0,0.09026371]
[1625705369250,3.52757185,33276.0,33275.0,0.25954401]
[1625705369700,3.52757185,33276.0,33275.0,0.09026371]
[1625705370004,3.52757185,33276.0,33275.0,0.25956009]
[1625705370301,3.52757185,33276.0,33275.0,0.5988022]
[1625705370767,2.29293754,33276.0,33275.0,1.19288682]
[1625705370912,0.24057544,33277.0,33275.0,1.19288682]
[1625705370913,0.85782517,33277.0,33275.0,4.75191424]
[1625705371066,0.85782517,33277.0,33275.0,4.80891424]
[1625705371203,0.24057544,33277.0,33276.0,4.74364546]
[1625705371353,0.24057544,33277.0,33276.0,4.98111546]
[1625705371503,0.24057544,33277.0,33276.0,4.9945964]
[1625705371806,0.24057544,33277.0,33276.0,5.46690406]
[1625705372104,0.24057544,33277.0,33276.0,5.47574712]
[1625705373754,0.24057544,33277.0,33276.0,5.4711094]
[1625705374054,0.24057544,33277.0,33276.0,5.47574881]
[1625705374506,0.08827636,33280.0,33276.0,5.47574881]
[1625705374656,0.08827636,33280.0,33279.0,4.75791865]
[1625705374956,0.61722687,33281.0,33279.0,4.75791865]
[1625705375105,0.61722687,33281.0,33279.0,4.81955791]
[1625705375258,0.26465001,33281.0,33280.0,3.4036644]
[1625705375781,0.26465001,33281.0,33280.0,3.64423984]
[1625705376759,0.26465001,33281.0,33280.0,5.0053871]
[1625705377063,0.26563621,33282.0,33280.0,5.0053871]
[1625705377220,0.88129851,33283.0,33280.0,5.07122875]
[1625705377360,0.24057544,33284.0,33281.0,4.7595638]
[1625705377509,0.35252095,33286.0,33283.0,4.75911452]
[1625705377659,0.35252095,33286.0,33283.0,5.16136452]
[1625705377810,0.35252095,33286.0,33285.0,3.63933169]
[1625705377960,0.53069334,33287.0,33285.0,3.63933169]
[1625705377961,0.002,33287.0,33285.0,3.63933169]
[1625705378112,0.002,33287.0,33285.0,5.05520618]
[1625705378259,0.002,33287.0,33286.0,4.7620827]
[1625705380434,0.002,33288.0,33286.0,4.7620827]
[1625705380584,0.35432806,33288.0,33287.0,3.40961766]
[1625705380884,0.5304037,33288.0,33287.0,2.22088986]
[1625705381189,0.002,33288.0,33287.0,3.41418168]
[1625705382837,0.002,33288.0,33287.0,4.777837]
[1625705383813,0.002,33288.0,33287.0,5.01841244]
[1625705384263,0.002,33288.0,33287.0,0.24521382]
[1625705384414,0.002,33288.0,33287.0,5.01505959]
[1625705384638,0.0001,33292.0,33287.0,5.01505959]
[1625705384788,0.9806,33293.0,33288.0,0.057]
[1625705384939,0.9806,33293.0,33292.0,2.21129865]
[1625705385089,0.9806,33293.0,33292.0,2.52404865]
[1625705385388,0.9806,33293.0,33292.0,2.52867749]
[1625705385690,0.9806,33293.0,33292.0,3.71946768]
[1625705385840,0.9806,33293.0,33292.0,4.20061856]
[1625705387867,0.9806,33293.0,33292.0,3.00982837]
[1625705389370,0.9806,33293.0,33292.0,4.19533762]
[1625705389671,0.9806,33293.0,33292.0,3.00982837]
[1625705390125,0.9806,33293.0,33292.0,1.98922899]
[1625705390273,0.9806,33293.0,33292.0,1.67647899]
[1625705390572,0.9806,33293.0,33292.0,0.99607941]
[1625705391023,0.9806,33293.0,33292.0,0.75550397]
[1625705391260,0.9806,33293.0,33292.0,1.19053462]
[1625705391261,1.30664,33293.0,33292.0,1.19053462]
[1625705391323,1.65803671,33293.0,33292.0,0.00462884]
[1625705391625,1.65803671,33293.0,33291.0,0.057]
[1625705391626,2.53633441,33293.0,33291.0,0.057]
[1625705391779,2.53633441,33293.0,33288.0,0.33846949]
[1625705391924,0.24057544,33290.0,33288.0,0.33846949]
[1625705392225,0.59200394,33290.0,33289.0,0.00463025]
[1625705392677,0.59200394,33290.0,33288.0,0.00463036]
[1625705392977,0.59200394,33290.0,33289.0,0.00463032]
[1625705393878,1.3596191,33290.0,33289.0,0.00463032]
[1625705394028,0.83257938,33290.0,33288.0,0.00463037]
[1625705394329,1.35961376,33290.0,33288.0,0.00463037]
[1625705394478,0.83257938,33290.0,33288.0,0.00463037]
[1625705395229,0.83257938,33290.0,33288.0,0.00563037]
[1625705395680,0.83257938,33290.0,33289.0,0.00463024]
[1625705395681,0.48115088,33290.0,33289.0,0.00463024]
[1625705396281,0.48115088,33290.0,33289.0,0.34503708]
[1625705396657,0.48115088,33290.0,33289.0,0.85545026]
[1625705396883,0.48115088,33290.0,33289.0,1.19550617]
[1625705397184,0.48115088,33290.0,33289.0,0.51504342]
[1625705397931,0.48115088,33290.0,33289.0,0.34513555]
[1625705398085,0.48115088,33290.0,33289.0,1.80738097]
[1625705398232,0.48115088,33290.0,33289.0,2.48873173]
[1625705398382,0.9806,33293.0,33289.0,2.48873173]
[1625705398534,0.9806,33293.0,33292.0,0.51086707]
[1625705398833,0.9806,33293.0,33292.0,2.21764161]
[1625705399732,0.9806,33293.0,33292.0,2.27464161]
[1625705400034,0.9806,33293.0,33292.0,2.75579249]
[1625705402589,0.9806,33293.0,33292.0,1.73450551]
[1625705403714,0.9806,33293.0,33292.0,2.75313317]
[1625705404314,0.9806,33293.0,33292.0,2.76197243]
[1625705407320,0.9806,33293.0,33292.0,2.76297243]
[1625705416930,0.9806,33293.0,33292.0,2.85287243]
[1625705417079,0.9806,33293.0,33292.0,4.03964586]
[1625705417381,0.9806,33293.0,33292.0,5.39588441]
[1625705421887,0.9806,33293.0,33292.0,6.92288846]
[1625705422485,0.9806,33293.0,33292.0,5.39588441]
[1625705422636,0.9806,33293.0,33292.0,6.9223787]
[1625705423089,0.9806,33293.0,33292.0,5.39588441]
[1625705425494,0.9806,33293.0,33292.0,6.92281161]
[1625705426541,0.9806,33293.0,33292.0,6.83291161]
[1625705428042,0.9806,33293.0,33292.0,6.8505853]
[1625705428342,0.9806,33293.0,33292.0,6.83291161]
[1625705428569,0.9806,33293.0,33292.0,6.85058523]
[1625705429092,0.9806,33293.0,33292.0,6.83291161]
[1625705431946,0.9806,33293.0,33292.0,6.84545327]
[1625705432396,0.9806,33293.0,33292.0,6.83291161]
[1625705434276,0.9806,33293.0,33292.0,6.8505852]
[1625705434424,0.9806,33293.0,33292.0,6.86312156]
[1625705439378,0.9806,33293.0,33292.0,8.56400853]
[1625705439531,0.9806,33293.0,33292.0,6.86312156]
[1625705439829,0.9806,33293.0,33292.0,8.56383261]
[1625705440208,0.9806,33293.0,33292.0,6.86312156]
[1625705441939,0.9806,33293.0,33292.0,8.56392538]
[1625705444789,0.9806,33293.0,33292.0,6.86312156]
[1625705446517,1.28128,33293.0,33292.0,6.86312156]
[1625705446669,1.28128,33293.0,33292.0,6.80612156]
[1625705446818,1.28128,33293.0,33292.0,6.7935852]
[1625705446968,1.28128,33293.0,33292.0,6.77591161]
[1625705447117,1.28128,33293.0,33292.0,5.24898441]
[1625705448620,0.9806,33293.0,33292.0,5.24898441]
[1625705448919,0.9806,33293.0,33292.0,6.77969507]
[1625705449369,0.9806,33293.0,33292.0,5.24898441]
[1625705449670,0.9806,33293.0,33292.0,6.77977311]
[1625705449821,0.9806,33293.0,33292.0,5.24898441]
[1625705450124,0.9806,33293.0,33292.0,6.78015512]
[1625705450273,0.9806,33293.0,33292.0,5.24898441]
[1625705450880,0.9806,33293.0,33292.0,3.89274586]
[1625705451023,0.9806,33293.0,33292.0,1.68734477]
[1625705451024,2.21289579,33293.0,33292.0,1.68734477]
[1625705451175,2.21289579,33293.0,33288.0,1.36484382]
[1625705451473,2.03674161,33293.0,33292.0,0.34137656]
[1625705451622,2.03674161,33293.0,33289.0,0.01344815]
[1625705451775,2.03674161,33293.0,33292.0,0.00460875]
[1625705451924,2.03674161,33293.0,33292.0,0.35487083]
[1625705452073,2.03674161,33293.0,33292.0,0.34603134]
[1625705452224,2.75846793,33293.0,33292.0,0.34603134]
[1625705452373,2.75846793,33293.0,33292.0,0.00560875]
[1625705452675,2.75846793,33293.0,33292.0,0.34707221]
[1625705453352,2.75846793,33293.0,33292.0,0.00560875]
[1625705453652,2.75846793,33293.0,33287.0,0.002]
[1625705453803,1.70232632,33293.0,33287.0,1.37129784]
[1625705453951,1.70232632,33293.0,33288.0,0.0046045]
[1625705454103,1.0,33292.0,33288.0,0.0046045]
[1625705454252,0.24057544,33289.0,33288.0,0.0046045]
[1625705455377,1.24057544,33289.0,33288.0,0.0056045]
[1625705456129,6.70306712,33289.0,33288.0,0.0056045]
[1625705456577,6.70306712,33289.0,33283.0,0.002]
[1625705456877,6.79316712,33289.0,33283.0,0.002]
[1625705457029,1.40839359,33285.0,33284.0,0.0046006]
[1625705457177,1.63759359,33285.0,33284.0,0.0046006]
[1625705457326,1.0,33284.0,33276.0,0.07187906]
[1625705457478,1.0,33284.0,33273.0,0.004]
[1625705457627,1.2292,33285.0,33273.0,0.004]
[1625705457776,1.2292,33285.0,33274.0,0.00459539]
[1625705457927,1.0,33278.0,33274.0,0.00459539]
[1625705458078,1.23194,33278.0,33274.0,0.00459539]
[1625705458228,0.72172632,33275.0,33274.0,0.00459539]
[1625705458830,0.72172632,33275.0,33273.0,0.00459539]
[1625705460632,1.72172632,33275.0,33273.0,0.00459539]
[1625705461007,0.72172632,33275.0,33273.0,0.00459539]
[1625705461311,1.72172632,33275.0,33273.0,0.00459539]
[1625705461686,0.72172632,33275.0,33273.0,0.00459539]
[1625705462285,0.72172632,33275.0,33273.0,4.14379539]
[1625705462663,0.72172632,33275.0,33274.0,0.00459573]
[1625705462961,0.72172632,33275.0,33273.0,2.14481445]
[1625705463110,0.72172632,33275.0,33272.0,0.004]
[1625705463259,1.0,33274.0,33272.0,0.004]
[1625705463409,1.34704,33274.0,33273.0,0.00458517]
[1625705464238,0.34704,33274.0,33273.0,0.00458517]
[1625705465586,0.72172632,33275.0,33273.0,0.00458517]
[1625705467692,0.72172632,33275.0,33272.0,0.00458551]
[1625705467992,0.72172632,33275.0,33274.0,0.00458539]
[1625705468145,0.72172632,33275.0,33274.0,0.2703]
[1625705468443,0.72172632,33275.0,33274.0,0.27488526]
[1625705469501,0.72172632,33275.0,33274.0,0.00458526]
[1625705475352,0.72172632,33275.0,33272.0,0.00458532]
[1625705476327,0.72172632,33275.0,33273.0,0.001]
[1625705476779,0.72172632,33275.0,33274.0,0.00458525]
[1625705482115,0.72172632,33275.0,33274.0,0.0134294]
[1625705482418,0.72172632,33275.0,33273.0,0.001]
[1625705482565,0.72172632,33275.0,33274.0,0.01342937]
[1625705484145,1.72172632,33275.0,33273.0,2.937e-05]
[1625705484306,2.06629632,33275.0,33263.0,0.003]
[1625705484444,0.72172632,33264.0,33263.0,0.003]
[1625705484600,0.97626632,33264.0,33263.0,0.003]
[1625705484747,0.97626632,33264.0,33263.0,0.01641567]
[1625705484896,5.49446632,33264.0,33263.0,0.01641567]
[1625705485050,5.49446632,33264.0,33263.0,0.003]
[1625705485347,5.49446632,33264.0,33263.0,0.01641644]
[1625705485500,5.49446632,33264.0,33263.0,0.003]
[1625705485870,5.49446632,33264.0,33263.0,0.00756971]
[1625705486020,5.49446632,33264.0,33263.0,0.0164172]
[1625705487445,5.49446632,33264.0,33263.0,0.00756971]
[1625705488045,0.97626632,33264.0,33263.0,0.01641684]
[1625705488196,0.72172632,33264.0,33263.0,0.003]
[1625705488345,0.72172632,33264.0,33262.0,0.003]
[1625705488496,0.72172632,33264.0,33263.0,0.01341639]
[1625705489096,0.72172632,33264.0,33263.0,0.00456942]
[1625705490824,1.72172632,33264.0,33263.0,0.00456942]
[1625705492472,0.72172632,33264.0,33263.0,0.00456942]
[1625705492622,1.72172632,33264.0,33263.0,0.00456942]
[1625705492923,0.72172632,33264.0,33263.0,0.00456942]
[1625705493825,1.72172632,33264.0,33263.0,0.00456942]
[1625705494274,0.72172632,33264.0,33263.0,0.00456942]
[1625705494424,0.72172632,33264.0,33262.0,0.003]
[1625705494425,0.72172632,33264.0,33262.0,0.00266942]
[1625705494576,2.03746632,33264.0,33262.0,0.00266942]
[1625705494726,1.0,33263.0,33262.0,0.00266942]
[1625705494877,2.03746632,33264.0,33262.0,0.00266942]
[1625705495027,1.03746632,33264.0,33262.0,0.00266942]
[1625705495778,1.0,33263.0,33262.0,0.00266942]
[1625705496080,2.03746632,33264.0,33262.0,0.00266942]
[1625705496380,1.0,33263.0,33262.0,0.00723171]
[1625705496531,0.24057544,33263.0,33262.0,0.00266942]
[1625705496681,1.24057544,33263.0,33262.0,0.00266942]
[1625705496830,1.24057544,33263.0,33262.0,0.00723194]
[1625705497282,1.24057544,33263.0,33262.0,0.00523194]
[1625705497430,1.58499544,33263.0,33262.0,0.00523194]
[1625705503961,1.24057544,33263.0,33262.0,0.00523194]
[1625705504111,0.24057544,33263.0,33262.0,0.26718194]
[1625705504713,1.24057544,33263.0,33262.0,0.26718194]
[1625705505012,0.24057544,33263.0,33262.0,0.26718194]
[1625705506289,1.24057544,33263.0,33262.0,0.00456252]
[1625705506441,1.55796544,33263.0,33261.0,0.00066942]
[1625705506742,0.55796544,33263.0,33262.0,0.00456455]
[1625705507039,0.55796544,33263.0,33261.0,0.00066942]
[1625705507190,1.55796544,33263.0,33261.0,0.00066942]
[1625705508780,0.5,33262.0,33261.0,0.00066942]
[1625705509087,1.5,33262.0,33261.0,0.00066942]
[1625705509224,2.55138674,33262.0,33261.0,0.00066942]
[1625705509382,3.86931552,33262.0,33261.0,0.00066942]
[1625705510345,5.27247138,33262.0,33261.0,0.00066942]
[1625705511396,4.97381476,33262.0,33261.0,0.00066942]
[1625705511548,5.97381476,33262.0,33251.0,6.942e-05]
[1625705511846,4.1889,33255.0,33245.0,0.68933541]
[1625705511997,4.50917,33255.0,33245.0,0.68933541]
[1625705512148,4.50917,33255.0,33247.0,0.00456554]
[1625705512298,4.50917,33255.0,33246.0,0.00456547]
[1625705512449,4.50917,33255.0,33250.0,0.003]
[1625705512598,0.72172632,33251.0,33250.0,0.003]
[1625705512897,0.72172632,33251.0,33250.0,0.00756364]
[1625705513047,1.72172632,33251.0,33250.0,0.00756364]
[1625705513197,1.72172632,33251.0,33250.0,0.003]
[1625705513497,1.72172632,33251.0,33250.0,0.0075638]
[1625705514776,0.72172632,33251.0,33250.0,0.0075638]
[1625705514925,1.72172632,33251.0,33250.0,0.0075638]
[1625705516956,0.72172632,33251.0,33250.0,0.0075638]
[1625705517106,1.72172632,33251.0,33250.0,0.0075638]
[1625705517856,0.72172632,33251.0,33250.0,0.0075638]
[1625705519136,0.72172632,33251.0,33246.0,6.38e-05]
[1625705519284,0.057,33250.0,33244.0,1.02698104]
[1625705519467,0.057,33250.0,33244.0,0.93668104]
[1625705519634,0.057,33250.0,33238.0,1.20293855]
[1625705519748,4.154,33241.0,33238.0,1.14373855]
[1625705519896,0.057,33240.0,33239.0,0.00456012]
[1625705520040,1.0,33239.0,33233.0,0.004]
[1625705520197,0.057,33238.0,33233.0,0.004]
[1625705520335,1.0,33234.0,33233.0,0.004]
[1625705520487,1.3529,33234.0,33233.0,0.004]
[1625705520635,2.31520176,33234.0,33233.0,0.004]
[1625705520784,2.31520176,33234.0,33233.0,0.00855023]
[1625705521092,2.31520176,33234.0,33233.0,0.004]
[1625705521386,2.31520176,33234.0,33233.0,0.00855037]
[1625705521536,2.31520176,33234.0,33233.0,0.004]
[1625705521688,2.40510176,33234.0,33233.0,0.004]
[1625705521839,2.40510176,33234.0,33233.0,0.00855042]
[1625705522438,2.40510176,33234.0,33233.0,0.00455042]
[1625705523729,1.31520176,33234.0,33233.0,0.00455042]
[1625705523863,2.31520176,33234.0,33233.0,0.00455042]
[1625705524014,1.31520176,33234.0,33233.0,0.00455042]
[1625705524165,2.31520176,33234.0,33233.0,0.00455042]
[1625705524766,1.31520176,33234.0,33233.0,0.00455042]
[1625705524916,1.01930176,33234.0,33233.0,0.00455042]
[1625705525664,1.01930176,33234.0,33231.0,0.00454851]
[1625705525815,1.01930176,33234.0,33233.0,0.00454849]
[1625705526114,1.01930176,33234.0,33231.0,0.00454835]
[1625705526266,1.33848176,33234.0,33231.0,0.00454835]
[1625705526941,1.28148176,33234.0,33231.0,0.00454835]
[1625705527091,0.48115088,33234.0,33231.0,0.00454835]
[1625705527392,0.48115088,33234.0,33233.0,0.1714041]
[1625705527542,0.48115088,33234.0,33233.0,4.5034241]
[1625705527693,0.48115088,33234.0,33233.0,4.50797213]
[1625705527842,0.48115088,33234.0,33233.0,4.33656803]
[1625705528593,0.48115088,33234.0,33233.0,4.57714347]
[1625705529643,0.48115088,33234.0,33233.0,4.58599622]
[1625705530876,0.48115088,33234.0,33233.0,0.48959622]
[1625705531016,0.48115088,33234.0,33233.0,0.24512347]
[1625705531760,0.48115088,33234.0,33233.0,0.25397638]
[1625705532048,0.48115088,33234.0,33233.0,0.24512347]
[1625705532648,0.48115088,33234.0,33233.0,0.41626878]
[1625705532949,0.48115088,33234.0,33233.0,0.24512347]
[1625705534975,0.48115088,33234.0,33233.0,0.25397646]
[1625705535125,0.48115088,33234.0,33233.0,0.24942843]
[1625705535277,0.48115088,33234.0,33233.0,0.24512264]
[1625705536778,0.48115088,33234.0,33233.0,0.25397586]
[1625705538282,0.48115088,33234.0,33233.0,0.24512264]
[1625705538583,0.48115088,33234.0,33233.0,0.25397598]
[1625705539635,0.48115088,33234.0,33233.0,0.58629598]
[1625705539786,0.48115088,33234.0,33233.0,1.95774944]
[1625705540086,0.48115088,33234.0,33233.0,3.15916587]
[1625705541062,0.24057544,33234.0,33233.0,3.15916587]
[1625705541516,0.001,33237.0,33233.0,3.17184294]
[1625705541664,0.24057544,33240.0,33236.0,3.08696639]
[1625705541964,0.24057544,33240.0,33239.0,3.08717321]
[1625705542414,0.24057544,33240.0,33239.0,3.10057078]
[1625705542715,0.24057544,33240.0,33239.0,3.34114622]
[1625705543702,0.24057544,33240.0,33239.0,4.88518117]
[1625705543990,0.24057544,33240.0,33239.0,4.89786295]
[1625705544215,0.002,33242.0,33239.0,4.89786295]
[1625705544371,0.002,33242.0,33240.0,0.01268368]
[1625705544517,0.002,33242.0,33241.0,4.6346654]
[1625705544815,0.002,33242.0,33241.0,5.12920847]
[1625705545266,0.002,33242.0,33241.0,5.14188991]
[1625705545416,0.002,33242.0,33241.0,5.12920847]
[1625705546020,0.002,33242.0,33241.0,5.14189121]
[1625705546318,0.001,33245.0,33241.0,5.14189121]
[1625705546620,0.001,33245.0,33244.0,3.09176416]
[1625705546919,0.001,33245.0,33244.0,3.34573199]
[1625705548646,0.001,33245.0,33244.0,3.09630701]
[1625705548798,0.001,33245.0,33244.0,1.72218961]
[1625705548950,0.24157544,33245.0,33244.0,0.51983688]
[1625705549475,0.24157544,33245.0,33244.0,1.55316789]
[1625705550073,0.29857544,33245.0,33244.0,2.75950585]
[1625705550229,0.29857544,33245.0,33244.0,1.55316789]
[1625705550526,0.29857544,33245.0,33244.0,0.00454285]
[1625705550827,0.71506857,33245.0,33244.0,0.00454285]
[1625705551278,0.71506857,33245.0,33243.0,0.17734859]
[1625705551424,0.97864857,33245.0,33243.0,0.17734859]
[1625705551573,0.97864857,33245.0,33244.0,0.00454457]
[1625705551724,1.33022942,33245.0,33244.0,0.00454457]
[1625705552101,0.97867967,33245.0,33244.0,0.00454457]
[1625705552250,0.97867967,33245.0,33243.0,0.00454448]
[1625705552399,0.97867967,33245.0,33243.0,0.17736802]
[1625705552551,0.97867967,33245.0,33244.0,0.00454444]
[1625705553001,0.80273088,33245.0,33244.0,0.17278664]
[1625705553301,0.80273088,33245.0,33244.0,0.17732909]
[1625705553450,0.97871604,33245.0,33244.0,0.00454245]
[1625705553600,0.80273088,33245.0,33244.0,0.17732941]
[1625705554050,0.80273088,33245.0,33244.0,0.52282939]
[1625705554727,0.97872846,33245.0,33244.0,0.17743394]
[1625705555025,0.80273088,33245.0,33244.0,0.52300919]
[1625705556902,0.80273088,33245.0,33244.0,0.17751377]
[1625705556903,0.97878175,33245.0,33244.0,0.17751377]
[1625705557355,1.06690772,33245.0,33244.0,0.17751377]
[1625705558105,1.06690772,33245.0,33244.0,0.52353193]
[1625705558631,0.89085685,33245.0,33244.0,0.52353193]
[1625705559381,1.06598541,33245.0,33244.0,0.52353193]
[1625705559832,1.00898541,33245.0,33244.0,0.52353193]
[1625705559984,0.74473088,33245.0,33244.0,1.5613005]
[1625705560206,0.83288208,33245.0,33244.0,0.52353193]
[1625705560507,1.00902862,33245.0,33244.0,0.52353193]
[1625705560657,0.74473088,33245.0,33244.0,1.56157727]
[1625705560957,0.80173088,33245.0,33244.0,1.56157727]
[1625705561108,0.88990635,33245.0,33244.0,1.56157727]
[1625705561407,1.0660813,33245.0,33244.0,0.52353193]
[1625705562383,1.0090813,33245.0,33244.0,1.56217324]
[1625705562539,0.88990635,33245.0,33244.0,1.56217324]
[1625705563285,1.06609635,33245.0,33244.0,1.56217324]
[1625705564335,0.74551635,33245.0,33244.0,1.56217324]
[1625705564484,0.56932635,33245.0,33244.0,1.56217324]
[1625705564935,0.62632635,33245.0,33244.0,1.56217324]
[1625705565235,0.56932635,33245.0,33244.0,1.56217324]
[1625705565539,0.74564707,33245.0,33244.0,1.56217324]
[1625705565687,0.56932635,33245.0,33244.0,2.77364634]
[1625705565986,0.74564596,33245.0,33244.0,2.77364634]
[1625705566513,0.80264596,33245.0,33244.0,1.56217324]
[1625705566663,1.06683296,33245.0,33244.0,0.52353193]
[1625705566887,1.06683296,33245.0,33244.0,1.56328655]
[1625705568544,2.12439648,33245.0,33244.0,1.56328655]
[1625705568916,2.12439648,33245.0,33244.0,0.52353193]
[1625705569441,2.12439648,33245.0,33244.0,1.56878981]
[1625705569742,2.12439648,33245.0,33244.0,0.52353193]
[1625705570044,3.3584017,33245.0,33244.0,0.52353193]
[1625705571468,2.12439648,33245.0,33244.0,1.57219331]
[1625705571918,2.82964018,33245.0,33244.0,2.27122307]
[1625705572068,2.82964018,33245.0,33244.0,1.22256169]
[1625705572369,4.0637762,33245.0,33244.0,1.22256169]
[1625705573647,2.82964018,33245.0,33244.0,2.27017758]
[1625705574399,1.06683296,33245.0,33244.0,3.4912659]
[1625705574549,1.06683296,33245.0,33244.0,3.50011714]
[1625705574699,1.7721163,33245.0,33244.0,3.50011714]
[1625705574999,1.7721163,33245.0,33244.0,3.74069258]
[1625705575448,1.41954836,33245.0,33244.0,3.74069258]
[1625705575750,1.77210308,33245.0,33244.0,2.51075302]
[1625705575899,2.82993116,33245.0,33244.0,2.27017758]
[1625705576048,2.82993116,33245.0,33244.0,2.27902887]
[1625705576200,1.77210308,33245.0,33244.0,3.5006178]
[1625705577924,1.06683296,33245.0,33244.0,3.5006178]
[1625705578301,1.77219554,33245.0,33244.0,3.5006178]
[1625705579064,2.83027473,33245.0,33244.0,3.5006178]
[1625705579877,2.83027473,33245.0,33244.0,2.27902887]
[1625705580027,3.08823473,33245.0,33244.0,2.27902887]
[1625705580476,3.08823473,33245.0,33244.0,3.50122659]
[1625705580934,3.08823473,33245.0,33244.0,2.27902887]
[1625705581235,4.32277795,33245.0,33244.0,2.27902887]
[1625705581386,4.32277795,33245.0,33244.0,1.23141298]
[1625705581904,0.79611088,33245.0,33244.0,0.01339374]
[1625705582131,4.323653,33245.0,33244.0,1.23651531]
[1625705582449,4.323653,33245.0,33244.0,2.28519991]
[1625705584383,3.08908379,33245.0,33244.0,3.50813592]
[1625705585357,4.32448257,33245.0,33244.0,3.50813592]
[1625705585582,4.32448257,33245.0,33244.0,2.28519991]
[1625705585732,5.73649352,33245.0,33244.0,2.28519991]
[1625705586035,4.32448257,33245.0,33244.0,2.28519991]
[1625705586333,4.32448257,33245.0,33244.0,3.50842295]
[1625705586784,5.73701031,33245.0,33244.0,2.28519991]
[1625705588212,4.32448257,33245.0,33244.0,2.28519991]
[1625705588360,5.7370302,33245.0,33244.0,2.28519991]
[1625705588510,5.7370302,33245.0,33244.0,2.27634862]
[1625705588809,5.7370302,33245.0,33244.0,2.28520056]
[1625705590311,4.32448257,33245.0,33244.0,3.51184382]
[1625705591513,5.73693237,33245.0,33244.0,2.28520056]
[1625705592262,4.32448257,33245.0,33244.0,2.28520056]
[1625705593465,4.32448257,33245.0,33244.0,3.50790871]
[1625705593917,4.32448257,33245.0,33244.0,2.28520056]
[1625705594291,4.32448257,33245.0,33244.0,3.50684337]
[1625705595716,3.08908379,33245.0,33244.0,3.50684337]
[1625705596391,4.32504693,33245.0,33244.0,3.50684337]
[1625705596917,4.32504693,33245.0,33244.0,2.28520056]
[1625705597967,4.32504693,33245.0,33244.0,3.50149556]
[1625705598117,3.08908379,33245.0,33244.0,3.50149556]
[1625705599692,3.08908379,33245.0,33244.0,4.89260819]
[1625705601120,3.08908379,33245.0,33244.0,3.50149556]
[1625705601871,4.32517142,33245.0,33244.0,3.50149556]
[1625705602325,3.08908379,33245.0,33244.0,4.89277355]
[1625705604052,3.03208379,33245.0,33244.0,4.89277355]
[1625705604218,1.97385642,33245.0,33244.0,4.89277355]
[1625705604505,1.26831273,33245.0,33244.0,4.89277355]
[1625705604654,1.01035273,33245.0,33244.0,4.89277355]
[1625705604806,1.01035273,33245.0,33244.0,6.45984193]
[1625705605256,1.36372548,33245.0,33244.0,6.45984193]
[1625705605557,1.09976511,33245.0,33244.0,6.47269597]
[1625705605706,1.09976511,33245.0,33244.0,6.45984193]
[1625705606007,1.71768534,33245.0,33244.0,4.89277355]
[1625705606458,1.71768534,33245.0,33244.0,6.46127077]
[1625705606683,1.71768534,33245.0,33244.0,4.89277355]
[1625705606910,2.77788312,33245.0,33244.0,4.89277355]
[1625705607210,1.71768534,33245.0,33244.0,4.89277355]
[1625705607512,1.71768534,33245.0,33244.0,6.45929333]
[1625705607965,1.01111945,33245.0,33244.0,6.45929333]
[1625705608115,1.01111945,33245.0,33244.0,6.47215721]
[1625705608415,1.71825555,33245.0,33244.0,6.47215721]
[1625705609766,1.01168267,33245.0,33244.0,6.47215721]
[1625705610968,0.74660414,33245.0,33244.0,6.47215721]
[1625705611567,0.5697013,33245.0,33244.0,6.47215721]
[1625705613072,1.01162315,33245.0,33244.0,6.47215721]
[1625705613745,0.5696701,33245.0,33244.0,6.47215721]
[1625705615398,0.48115088,33245.0,33244.0,6.47215721]
[1625705615997,0.56965439,33245.0,33244.0,6.47215721]
[1625705616296,0.48115088,33245.0,33244.0,6.47215721]
[1625705616747,0.7464742,33245.0,33244.0,6.47215721]
[1625705617572,0.48115088,33245.0,33244.0,6.47215721]
[1625705617723,0.56964136,33245.0,33244.0,6.47215721]
[1625705618172,0.48115088,33245.0,33244.0,6.47215721]
[1625705619298,0.569638,33245.0,33244.0,6.47215721]
[1625705619600,0.626638,33245.0,33244.0,6.47215721]
[1625705619902,1.71784872,33245.0,33244.0,4.89277355]
[1625705620051,2.77778559,33245.0,33244.0,4.89277355]
[1625705620276,1.71784872,33245.0,33244.0,4.89277355]
[1625705620727,1.71784872,33245.0,33244.0,6.45935398]
[1625705620877,1.01118947,33245.0,33244.0,6.45935398]
[1625705621029,1.71780955,33245.0,33244.0,4.89277355]
[1625705622230,2.83465248,33245.0,33244.0,4.89277355]
[1625705622379,2.77765248,33245.0,33244.0,4.89277355]
[1625705622532,1.71780955,33245.0,33244.0,4.89277355]
[1625705622831,2.7776565,33245.0,33244.0,4.89277355]
[1625705623281,1.71780955,33245.0,33244.0,4.89277355]
[1625705623580,1.77480955,33245.0,33244.0,4.89277355]
[1625705623731,2.83468701,33245.0,33244.0,4.89277355]
[1625705623880,2.77768701,33245.0,33244.0,4.89277355]
[1625705624185,1.71780955,33245.0,33244.0,4.89277355]
[1625705626136,1.77480955,33245.0,33244.0,4.89277355]
[1625705626287,1.71780955,33245.0,33244.0,4.89277355]
[1625705626437,1.36457673,33245.0,33244.0,6.46130583]
[1625705626739,0.48115088,33245.0,33244.0,1.58192667]
[1625705626888,1.01115027,33245.0,33244.0,6.4666943]
[1625705627189,1.01131652,33245.0,33244.0,6.4795935]
[1625705627339,1.01114448,33245.0,33244.0,6.4666943]
[1625705627643,1.71776231,33245.0,33244.0,4.89816202]
[1625705628166,2.77760386,33245.0,33244.0,4.89816202]
[1625705629517,1.71776231,33245.0,33244.0,4.89816202]
[1625705629817,2.77763197,33245.0,33244.0,4.89816202]
[1625705630792,3.05765197,33245.0,33244.0,4.89816202]
[1625705631244,3.11465197,33245.0,33244.0,4.89816202]
[1625705631394,4.35124521,33245.0,33244.0,4.89816202]
[1625705631995,4.35124521,33245.0,33244.0,3.50251413]